bitfinex-derivatives/quotes_BTCF0:USTF0_20251202
["timestamp","ask_amount","ask_price","bid_price","bid_amount"]
[1764639491143,0.5028,86685.0,86684.0,0.18985031]
[1764639494050,0.5028,86685.0,86684.0,0.14839307]
[1764639496740,0.5028,86685.0,86680.0,0.04974]
[1764639496741,0.9328,86685.0,86681.0,0.04150199]
[1764639496947,0.3608,86683.0,86680.0,0.04974]
[1764639497250,0.5008,86683.0,86680.0,0.04974]
[1764639497455,0.5008,86683.0,86680.0,0.19796]
[1764639498749,0.5008,86683.0,86682.0,0.14822]
[1764639498750,0.5018,86683.0,86682.0,0.14822]
[1764639500256,0.5008,86683.0,86682.0,0.14822]
[1764639500556,0.5018,86683.0,86682.0,0.14822]
[1764639500752,0.5028,86683.0,86682.0,0.14822]
[1764639501253,0.5028,86683.0,86680.0,0.04974]
[1764639501452,0.5028,86683.0,86680.0,0.19796]
[1764639501951,0.5038,86683.0,86680.0,0.19796]
[1764639502552,0.5018,86683.0,86680.0,0.19796]
[1764639502746,0.5028,86683.0,86680.0,0.19796]
[1764639503148,0.5018,86683.0,86680.0,0.19796]
[1764639503348,0.5028,86683.0,86680.0,0.19796]
[1764639503857,0.5028,86683.0,86682.0,0.14822]
[1764639504057,0.002,86683.0,86682.0,0.14822]
[1764639504755,0.001,86683.0,86682.0,0.14822]
[1764639504957,0.002,86683.0,86682.0,0.14822]
[1764639505154,0.001,86683.0,86682.0,0.14822]
[1764639505456,0.002,86683.0,86682.0,0.14822]
[1764639505758,0.001,86683.0,86682.0,0.14822]
[1764639505959,0.002,86683.0,86682.0,0.14822]
[1764639506361,0.001,86683.0,86682.0,0.14822]
[1764639506857,0.001,86683.0,86682.0,0.19822]
[1764639508356,0.5372,86694.0,86682.0,0.19822]
[1764639508357,0.64554,86694.0,86693.0,0.14822]
[1764639508656,0.79554,86694.0,86693.0,0.14822]
[1764639509452,0.79754,86694.0,86693.0,0.14822]
[1764639510265,0.79854,86694.0,86693.0,0.14822]
[1764639510465,0.16622,86691.0,86690.0,0.15032945]
[1764639510651,0.31622,86691.0,86690.0,0.23165945]
[1764639511456,0.2336,86691.0,86690.0,0.23165945]
[1764639511666,0.2356,86691.0,86690.0,0.23165945]
[1764639512366,0.31822,86691.0,86690.0,0.23165945]
[1764639513464,0.31922,86691.0,86690.0,0.23165945]
[1764639514154,0.31922,86691.0,86690.0,0.16946]
[1764639514962,0.2366,86691.0,86690.0,0.16946]
[1764639515149,0.153,86691.0,86690.0,0.16946]
[1764639515354,0.3608,86718.0,86700.0,0.16139]
[1764639515560,0.10965693,86701.0,86700.0,0.84219]
[1764639515758,0.29752,86712.0,86711.0,0.16139]
[1764639515958,0.43752,86712.0,86711.0,0.20282968]
[1764639516259,0.43752,86712.0,86711.0,0.16139]
[1764639516654,0.6102,86712.0,86711.0,0.08151]
[1764639517157,0.6112,86712.0,86711.0,0.16139]
[1764639517552,0.6112,86712.0,86711.0,0.17315016]
[1764639518760,0.6132,86712.0,86711.0,0.17315016]
[1764639519169,0.6122,86712.0,86711.0,0.17315016]
[1764639519470,0.143,86712.0,86711.0,0.17315016]
[1764639519656,0.31568,86712.0,86711.0,0.17315016]
[1764639522572,0.31568,86712.0,86711.0,0.16139]
[1764639522775,0.31568,86712.0,86709.0,0.05035]
[1764639522776,0.08427,86704.0,86703.0,0.12292553]
[1764639522967,0.32268,86704.0,86703.0,0.08151]
[1764639523282,0.32268,86704.0,86703.0,0.16139]
[1764639524278,0.32268,86704.0,86703.0,0.17266743]
[1764639528476,0.15,86704.0,86703.0,0.17266743]
[1764639530066,0.15,86704.0,86703.0,0.21408296]
[1764639530465,0.32268,86704.0,86703.0,0.21408296]
[1764639530877,0.15,86704.0,86703.0,0.21408296]
[1764639532177,0.15,86704.0,86703.0,0.17266743]
[1764639532874,0.32268,86704.0,86703.0,0.17266743]
[1764639533778,0.32268,86704.0,86703.0,0.04139945]
[1764639534078,0.32268,86704.0,86691.0,0.3608]
[1764639534079,0.20211,86702.0,86699.0,0.04139945]
[1764639534278,0.20211,86702.0,86695.0,0.06215952]
[1764639534279,0.17268,86696.0,86695.0,0.16139]
[1764639534480,0.31268,86696.0,86695.0,0.16139]
[1764639534776,0.17268,86694.0,86693.0,0.04260819]
[1764639535081,0.31268,86694.0,86692.0,0.03123686]
[1764639535278,0.17268,86693.0,86692.0,0.00017307]
[1764639535482,0.33268,86693.0,86692.0,0.00017307]
[1764639536882,0.33268,86693.0,86692.0,0.19262686]
[1764639537479,0.33368,86693.0,86692.0,0.19262686]
[1764639539883,0.33368,86693.0,86692.0,0.16156307]
[1764639540781,0.161,86693.0,86692.0,0.52236307]
[1764639541081,0.161,86693.0,86692.0,0.57236307]
[1764639541388,0.13102175,86693.0,86692.0,1.35236307]
[1764639541682,0.13102175,86693.0,86692.0,0.97236307]
[1764639542085,0.13102175,86693.0,86692.0,0.95556307]
[1764639542086,1.75e-06,86693.0,86692.0,0.95556307]
[1764639542681,0.00017307,86702.0,86701.0,0.1789935]
[1764639542889,0.00017307,86702.0,86701.0,0.5897935]
[1764639543087,0.08319307,86702.0,86701.0,0.63035249]
[1764639543382,0.00017307,86702.0,86701.0,0.56826]
[1764639543588,0.00017307,86702.0,86701.0,0.57826]
[1764639544283,0.00017307,86702.0,86701.0,0.9521147]
[1764639544678,0.00017307,86702.0,86701.0,0.9511147]
[1764639545080,0.00017307,86702.0,86701.0,0.86826]
[1764639545484,0.00017307,86702.0,86701.0,0.95106896]
[1764639546375,0.00017307,86702.0,86701.0,0.66206896]
[1764639546688,0.00017307,86702.0,86701.0,0.96206896]
[1764639548185,0.00017307,86702.0,86701.0,0.87926]
[1764639551392,0.00017307,86702.0,86701.0,0.96200038]
[1764639552994,0.00017307,86702.0,86701.0,0.66200038]
[1764639554394,0.00017307,86702.0,86701.0,0.57926]
[1764639554889,0.3608,86729.0,86720.0,0.16746]
[1764639555091,0.68254,86721.0,86720.0,0.04134037]
[1764639555483,0.16174,86720.0,86719.0,0.04134037]
[1764639555679,0.21084,86716.0,86715.0,0.04134037]
[1764639555895,0.16174,86712.0,86711.0,0.04151754]
[1764639556088,0.30174,86712.0,86711.0,0.04151754]
[1764639557098,0.30274,86712.0,86711.0,0.00017297]
[1764639557396,0.30274,86712.0,86711.0,0.04151754]
[1764639557602,0.30174,86712.0,86711.0,0.04151754]
[1764639558096,0.30174,86712.0,86711.0,0.00017297]
[1764639558396,0.30174,86712.0,86711.0,0.04151754]
[1764639559098,0.30174,86712.0,86711.0,0.00017297]
[1764639559493,0.30174,86712.0,86711.0,0.04151754]
[1764639559893,0.30174,86712.0,86711.0,0.12427754]
[1764639560196,0.30174,86712.0,86711.0,0.08293297]
[1764639560384,0.30174,86712.0,86711.0,0.12427754]
[1764639560899,0.30174,86712.0,86711.0,0.20897754]
[1764639561099,0.30174,86712.0,86711.0,0.16763297]
[1764639561296,0.30174,86712.0,86711.0,0.20897754]
[1764639561501,0.30174,86712.0,86711.0,0.16763297]
[1764639561800,0.08302,86712.0,86711.0,0.2296409]
[1764639562398,0.44382,86721.0,86720.0,0.16746]
[1764639562595,0.5008,86721.0,86720.0,0.20878597]
[1764639562992,0.58382,86721.0,86720.0,0.20878597]
[1764639563199,0.66254,86721.0,86720.0,0.20878597]
[1764639563693,0.58382,86721.0,86720.0,0.20878597]
[1764639564205,0.14,86721.0,86720.0,0.16746]
[1764639564707,0.14,86721.0,86720.0,0.27944896]
[1764639565001,0.22302,86721.0,86720.0,0.22944896]
[1764639565188,0.22302,86721.0,86720.0,0.16746]
[1764639565386,0.30174,86721.0,86720.0,0.16746]
[1764639566105,0.30174,86721.0,86720.0,0.22944896]
[1764639566303,0.30174,86721.0,86720.0,0.16746]
[1764639567104,0.30174,86721.0,86720.0,0.22944896]
[1764639568296,0.30174,86721.0,86720.0,0.21746]
[1764639568701,0.30174,86721.0,86720.0,0.22944071]
[1764639569105,0.30174,86721.0,86720.0,0.16746]
[1764639570000,0.16174,86718.0,86717.0,0.44356]
[1764639570201,0.29174,86718.0,86717.0,0.57826]
[1764639571304,0.29174,86718.0,86717.0,0.52826]
[1764639571705,0.29174,86718.0,86717.0,0.0620007]
[1764639571903,0.1607,86714.0,86713.0,0.0620007]
[1764639572098,0.1607,86713.0,86711.0,0.06217367]
[1764639572295,0.1607,86713.0,86711.0,0.00017297]
[1764639572296,0.1607,86712.0,86711.0,0.00017297]
[1764639572495,0.3207,86712.0,86711.0,0.00017297]
[1764639573105,0.3207,86712.0,86711.0,0.08564297]
[1764639573305,0.15691,86718.0,86717.0,0.1648]
[1764639573509,0.07916,86718.0,86717.0,0.56694676]
[1764639573897,0.07916,86718.0,86717.0,0.58761996]
[1764639574093,0.15691,86718.0,86717.0,0.58761996]
[1764639574299,0.15691,86718.0,86717.0,0.5256]
[1764639574499,0.29691,86718.0,86717.0,0.1648]
[1764639574810,0.20725,86716.0,86715.0,0.3608]
[1764639574994,0.35725,86716.0,86715.0,0.44295]
[1764639575196,0.35725,86716.0,86715.0,0.5256]
[1764639575707,0.15691,86714.0,86712.0,0.06201996]
[1764639575912,0.15691,86712.0,86711.0,0.06219293]
[1764639576211,0.31691,86712.0,86711.0,0.06219293]
[1764639577113,0.31691,86712.0,86711.0,0.14434293]
[1764639577416,0.31691,86712.0,86711.0,0.06219293]
[1764639577816,0.31691,86712.0,86711.0,0.14434293]
[1764639579518,0.31691,86712.0,86711.0,0.22699293]
[1764639579816,0.31691,86712.0,86711.0,0.16497297]
[1764639580418,0.31691,86712.0,86711.0,0.00017297]
[1764639581108,0.31691,86712.0,86711.0,0.08232297]
[1764639581416,0.31691,86712.0,86711.0,0.14434293]
[1764639581613,0.31691,86712.0,86711.0,0.22699293]
[1764639581810,0.15691,86712.0,86711.0,0.16497297]
[1764639582018,0.41114,86723.0,86722.0,0.1648]
[1764639582019,0.15691,86723.0,86722.0,0.1648]
[1764639582217,0.24691,86723.0,86722.0,0.1648]
[1764639582515,0.24691,86723.0,86722.0,0.2148]
[1764639582516,0.09,86723.0,86722.0,0.2148]
[1764639582823,0.09,86723.0,86722.0,0.1648]
[1764639583009,0.09,86723.0,86722.0,0.4748]
[1764639585116,0.29725,86723.0,86722.0,0.2048]
[1764639585322,0.29725,86723.0,86722.0,0.24610491]
[1764639586018,0.29725,86723.0,86722.0,0.2048]
[1764639586318,0.24691,86723.0,86722.0,0.2048]
[1764639586523,0.24691,86723.0,86722.0,0.1648]
[1764639587309,0.29725,86723.0,86722.0,0.1648]
[1764639589219,0.29725,86723.0,86722.0,0.08215]
[1764639589424,0.15691,86719.0,86718.0,0.04130491]
[1764639589721,0.30691,86719.0,86718.0,0.04130491]
[1764639589920,0.30691,86719.0,86718.0,0.12345491]
[1764639590320,0.30691,86719.0,86718.0,0.04130491]
[1764639590511,0.15591,86718.0,86717.0,0.40210491]
[1764639590719,0.15591,86718.0,86703.0,0.17741044]
[1764639590720,0.15691,86712.0,86710.0,0.04130491]
[1764639590926,0.30691,86712.0,86709.0,0.03098271]
[1764639591444,0.15691,86723.0,86722.0,0.1648]
[1764639591613,0.30691,86723.0,86722.0,0.1648]
[1764639591816,0.35725,86723.0,86722.0,0.08215]
[1764639592115,0.35725,86723.0,86722.0,0.1648]
[1764639592424,0.35725,86723.0,86711.0,0.031148]
[1764639592425,0.15691,86712.0,86711.0,0.031148]
[1764639592724,0.30691,86712.0,86711.0,0.031148]
[1764639593428,0.30691,86712.0,86711.0,0.00017297]
[1764639593823,0.30691,86712.0,86711.0,0.00117297]
[1764639595229,0.30691,86712.0,86711.0,0.08332297]
[1764639598035,0.30691,86712.0,86711.0,0.00117297]
[1764639600326,0.35725,86712.0,86711.0,0.00117297]
[1764639600522,0.35725,86712.0,86708.0,0.04130037]
[1764639600722,0.05034,86700.0,86696.0,0.0309939]
[1764639600924,0.3608,86697.0,86687.0,0.1648]
[1764639601125,0.15691,86690.0,86689.0,0.08215]
[1764639601331,0.15691,86685.0,86684.0,0.22676353]
[1764639601531,0.15691,86685.0,86684.0,0.1648]
[1764639602041,0.15591,86685.0,86684.0,0.1648]
[1764639602342,0.31291,86685.0,86684.0,0.17653185]
[1764639603038,0.31291,86685.0,86684.0,0.17753185]
[1764639603640,0.31291,86685.0,86684.0,0.01273185]
[1764639603846,0.31291,86685.0,86684.0,0.16582185]
[1764639604745,0.31291,86685.0,86684.0,0.01273185]
[1764639605442,0.31291,86685.0,86684.0,0.16582185]
[1764639605745,0.15291,86685.0,86684.0,0.16582185]
[1764639605945,0.30291,86685.0,86684.0,0.16582185]
[1764639608271,0.15291,86685.0,86684.0,0.16582185]
[1764639609372,0.15057,86694.0,86693.0,0.15309]
[1764639609677,0.31057,86694.0,86693.0,0.15309]
[1764639610972,0.31057,86694.0,86693.0,0.07434]
[1764639611168,0.15057,86685.0,86684.0,0.01273185]
[1764639611367,0.15057,86677.0,86676.0,0.00017297]
[1764639611570,0.31057,86677.0,86676.0,0.00017297]
[1764639611873,0.31057,86677.0,86676.0,0.16499075]
[1764639612080,0.15057,86688.0,86687.0,0.15309]
[1764639612460,0.15457,86694.0,86693.0,0.15309]
[1764639612768,0.13,86694.0,86693.0,0.15309]
[1764639613072,0.28057,86694.0,86693.0,0.15309]
[1764639613774,0.15057,86689.0,86688.0,0.2012]
[1764639613974,0.15057,86686.0,86685.0,0.51389]
[1764639614170,0.29057,86686.0,86685.0,0.51389]
[1764639614364,0.15057,86686.0,86685.0,0.57585353]
[1764639614675,0.15057,86686.0,86685.0,0.51389]
[1764639615262,0.29057,86686.0,86685.0,0.51389]
[1764639615464,0.15257,86686.0,86685.0,0.57585353]
[1764639615863,0.3608,86697.0,86696.0,0.15309]
[1764639615864,0.43687,86697.0,86696.0,0.15309]
[1764639616075,0.31057,86697.0,86696.0,0.15309]
[1764639617476,0.16,86697.0,86696.0,0.15309]
[1764639618172,0.23607,86697.0,86696.0,0.15309]
[1764639618574,0.24107,86697.0,86696.0,0.15309]
[1764639618775,0.08257312,86697.0,86696.0,0.15309]
[1764639619079,0.22107,86697.0,86696.0,0.15309]
[1764639619465,0.145,86697.0,86696.0,0.15309]
[1764639619664,0.00017297,86702.0,86701.0,0.15309]
[1764639619867,0.02017297,86702.0,86701.0,0.15309]
[1764639621978,0.02417297,86702.0,86701.0,0.15309]
[1764639622478,0.02017297,86702.0,86701.0,0.15309]
[1764639622776,0.02517297,86702.0,86701.0,0.15309]
[1764639626782,0.02517297,86702.0,86701.0,0.1646235]
[1764639627280,0.43687,86722.0,86721.0,0.15309]
[1764639627581,0.65137,86722.0,86721.0,0.15309]
[1764639628783,0.65737,86722.0,86721.0,0.15309]
[1764639628970,0.65737,86722.0,86721.0,0.16493622]
[1764639629386,0.29757,86722.0,86721.0,0.16493622]
[1764639631485,0.147,86722.0,86721.0,0.16493622]
[1764639631671,0.147,86722.0,86721.0,0.21493622]
[1764639631874,0.00017297,86730.0,86721.0,0.21493622]
[1764639631875,0.00017297,86730.0,86729.0,0.1876098]
[1764639632177,0.08641,86738.0,86737.0,0.2417386]
[1764639632487,0.09036859,86765.0,86745.0,0.0115275]
[1764639632680,0.14,86765.0,86750.0,0.3608]
[1764639633071,0.08341,86751.0,86750.0,0.52615]
[1764639633272,0.00011358,86766.0,86765.0,0.16535]
[1764639633482,0.30577358,86766.0,86765.0,0.16535]
[1764639634875,0.30577358,86766.0,86761.0,0.3608]
[1764639634876,0.16566,86762.0,86761.0,0.44408]
[1764639635077,0.16566,86762.0,86761.0,0.52615]
[1764639638376,0.16566,86762.0,86752.0,0.05222]
[1764639638377,0.16566,86753.0,86752.0,0.21757]
[1764639638984,0.08341,86753.0,86752.0,0.21757]
[1764639639289,0.16566,86753.0,86752.0,0.21757]
[1764639639488,0.00011358,86766.0,86752.0,0.21757]
[1764639639679,0.15011358,86766.0,86752.0,0.21757]
[1764639641180,0.31577358,86766.0,86765.0,0.16535]
[1764639642185,0.31677358,86766.0,86765.0,0.16535]
[1764639642994,0.16566,86761.0,86760.0,0.21757]
[1764639644394,0.16577358,86766.0,86765.0,0.16535]
[1764639644694,0.30577358,86766.0,86765.0,0.16535]
[1764639645085,0.14011358,86766.0,86765.0,0.176875]
[1764639645289,0.14011358,86766.0,86765.0,0.229095]
[1764639645589,0.01111358,86766.0,86765.0,0.229095]
[1764639645993,0.01111358,86766.0,86765.0,0.21757]
[1764639646184,0.30677358,86766.0,86765.0,0.21757]
[1764639646384,0.17677358,86766.0,86765.0,0.21757]
[1764639647000,0.16566,86761.0,86760.0,0.21757]
[1764639647898,0.31566,86761.0,86760.0,0.21757]
[1764639648095,0.16566,86753.0,86752.0,0.1355]
[1764639648295,0.16566,86753.0,86752.0,0.16535]
[1764639648794,0.32566,86753.0,86752.0,0.16535]
[1764639649192,0.16566,86753.0,86752.0,0.16535]
[1764639649695,0.29566,86753.0,86752.0,0.16535]
[1764639649896,0.16566,86750.0,86749.0,0.08345297]
[1764639650091,0.30566,86750.0,86749.0,0.08345297]
[1764639650296,0.32566,86750.0,86749.0,0.00017297]
[1764639651595,0.16566,86738.0,86737.0,0.44408]
[1764639651802,0.30566,86738.0,86737.0,0.3608]
[1764639652888,0.30566,86738.0,86737.0,0.52615]
[1764639653497,0.30566,86738.0,86737.0,0.3608]
[1764639654402,0.16566,86731.0,86730.0,0.21757]
[1764639655310,0.30566,86731.0,86730.0,0.21757]
[1764639656008,0.16566,86730.0,86729.0,0.08345297]
[1764639656302,0.32566,86730.0,86729.0,0.00017297]
[1764639656690,0.19083,86728.0,86727.0,0.00014767]
[1764639656893,0.16566,86713.0,86712.0,0.57837]
[1764639657299,0.16466,86713.0,86712.0,0.57837]
[1764639657813,0.16366,86713.0,86712.0,0.57837]
[1764639657997,0.16376642,86713.0,86712.0,0.57937]
[1764639658306,0.08351642,86713.0,86712.0,0.59071789]
[1764639658503,0.16576642,86713.0,86712.0,0.59371789]
[1764639660516,0.00063095,86713.0,86712.0,0.59371789]
[1764639660692,0.00017297,86721.0,86720.0,0.21757]
[1764639660897,0.16017297,86721.0,86720.0,0.21757]
[1764639661499,0.60024994,86721.0,86712.0,0.004]
[1764639661697,0.3608,86713.0,86712.0,0.003]
[1764639661905,0.5208,86713.0,86704.0,0.05239297]
[1764639662116,0.7488,86713.0,86704.0,0.05239297]
[1764639662409,0.5188,86713.0,86712.0,0.22447]
[1764639663103,0.5188,86713.0,86712.0,0.22547]
[1764639663697,0.5188,86713.0,86712.0,0.22747]
[1764639663898,0.5188,86713.0,86712.0,0.22647]
[1764639664409,0.5188,86713.0,86712.0,0.22447]
[1764639664799,0.3588,86713.0,86712.0,0.22447]
[1764639665201,0.4988,86713.0,86712.0,0.22447]
[1764639666605,0.9488,86713.0,86704.0,0.00017297]
[1764639666805,0.3608,86705.0,86704.0,0.00017297]
[1764639667009,0.3608,86705.0,86688.0,0.13908]
[1764639667010,0.8708,86705.0,86688.0,0.13908]
[1764639667205,0.3608,86693.0,86688.0,0.13908]
[1764639667401,0.53655697,86692.0,86680.0,0.13819]
[1764639667604,0.3608,86684.0,86680.0,0.05133]
[1764639667805,0.5108,86684.0,86680.0,0.05133]
[1764639668007,0.5098,86684.0,86680.0,0.05133]
[1764639668208,0.5098,86684.0,86680.0,0.22447]
[1764639668802,0.5098,86684.0,86680.0,0.05133]
[1764639669002,0.5098,86684.0,86680.0,0.22447]
[1764639669921,0.5118,86684.0,86680.0,0.22447]
[1764639673831,0.5118,86684.0,86680.0,0.05133]
[1764639674418,0.5118,86684.0,86683.0,0.17314]
[1764639674624,0.5118,86684.0,86683.0,0.08686]
[1764639674818,0.5118,86684.0,86683.0,0.17314]
[1764639676726,0.5118,86684.0,86673.0,0.17331297]
[1764639676927,0.5118,86684.0,86683.0,0.08686]
[1764639677524,0.5118,86684.0,86683.0,0.17314]
[1764639677730,0.5098,86684.0,86683.0,0.17314]
[1764639677930,0.5108,86684.0,86683.0,0.17314]
[1764639679236,0.5098,86684.0,86683.0,0.17314]
[1764639679535,0.5118,86684.0,86683.0,0.17314]
[1764639679837,0.5098,86684.0,86683.0,0.17314]
[1764639680040,0.5118,86684.0,86683.0,0.17314]
[1764639680638,0.5118,86684.0,86680.0,0.05133]
[1764639683024,0.5118,86684.0,86683.0,0.17314]
[1764639684737,0.31802393,86684.0,86683.0,0.17314]
[1764639684940,0.68872,86684.0,86683.0,0.17314]
[1764639686843,0.6784972,86684.0,86683.0,0.17314]
[1764639693238,0.1417772,86684.0,86683.0,0.17314]
[1764639694743,0.1417772,86684.0,86683.0,0.23485415]
[1764639695134,0.0017772,86684.0,86683.0,0.28485415]
[1764639695335,0.0017772,86684.0,86683.0,0.17314]
[1764639695931,0.0017772,86684.0,86683.0,0.23514851]
[1764639696338,0.0017772,86684.0,86683.0,0.17314]
[1764639697044,0.0017772,86684.0,86683.0,0.22314]
[1764639697243,0.3608,86705.0,86704.0,0.2583]
[1764639697433,0.14,86705.0,86704.0,0.2583]
[1764639697839,0.14,86705.0,86704.0,0.29966529]
[1764639698047,0.14,86705.0,86704.0,0.2583]
[1764639698346,0.141,86705.0,86704.0,0.2583]
[1764639698846,0.147,86705.0,86704.0,0.2583]
[1764639699442,0.147,86705.0,86700.0,0.04136529]
[1764639699648,0.5078,86705.0,86698.0,0.04136529]
[1764639699845,0.5078,86705.0,86698.0,0.14400529]
[1764639700035,0.5078,86705.0,86698.0,0.1989]
[1764639700740,0.147,86705.0,86704.0,0.2583]
[1764639700943,0.146,86705.0,86704.0,0.2583]
[1764639701147,0.147,86705.0,86704.0,0.2583]
[1764639701451,0.144,86705.0,86704.0,0.2583]
[1764639701852,0.141,86705.0,86704.0,0.2583]
[1764639702054,0.144,86705.0,86704.0,0.2583]
[1764639702549,0.144,86705.0,86698.0,0.3608]
[1764639702748,0.9148,86705.0,86696.0,0.05957297]
[1764639703851,0.3608,86698.0,86696.0,0.05957297]
[1764639704046,0.53668,86697.0,86696.0,0.00017297]
[1764639704251,1.07668,86697.0,86696.0,0.00017297]
[1764639705333,1.07968,86697.0,86696.0,0.00017297]
[1764639705538,1.07968,86697.0,86688.0,0.0594]
[1764639705737,0.3608,86689.0,86688.0,0.0594]
[1764639705937,0.5008,86689.0,86688.0,0.0594]
[1764639706549,0.5008,86689.0,86680.0,0.05133]
[1764639706550,0.8708,86689.0,86680.0,0.09286826]
[1764639706945,0.8708,86689.0,86681.0,0.46344]
[1764639707138,0.8708,86689.0,86681.0,0.5597]
[1764639707337,0.8708,86689.0,86681.0,0.60106529]
[1764639707539,0.8728,86689.0,86681.0,0.60106529]
[1764639708250,0.142,86689.0,86688.0,0.0594]
[1764639708446,0.14,86689.0,86688.0,0.0594]
[1764639708640,0.141,86689.0,86688.0,0.0594]
[1764639710148,0.142,86689.0,86688.0,0.0594]
[1764639710553,0.141,86689.0,86688.0,0.0594]
[1764639710850,0.143,86689.0,86688.0,0.0594]
[1764639712047,0.143,86689.0,86688.0,0.16204]
[1764639715955,0.143,86689.0,86680.0,0.00017297]
[1764639715956,0.533,86689.0,86680.0,0.00017297]
[1764639716150,0.3608,86681.0,86680.0,0.00017297]
[1764639716350,1.03748,86681.0,86680.0,0.00017297]
[1764639718046,1.03848,86681.0,86680.0,0.00017297]
[1764639718969,1.48848,86681.0,86680.0,0.00017297]
[1764639720557,1.48848,86681.0,86670.0,8.345e-05]
[1764639720758,0.3608,86671.0,86659.0,0.04136529]
[1764639720955,0.66848025,86670.0,86659.0,0.04136529]
[1764639721152,0.66848025,86670.0,86657.0,0.04136529]
[1764639721153,1.23848025,86670.0,86657.0,0.04136529]
[1764639721762,8.345e-05,86669.0,86660.0,0.2583]
[1764639721963,0.3608,86664.0,86663.0,0.1989]
[1764639722166,0.5008,86664.0,86663.0,0.1989]
[1764639722361,0.5008,86664.0,86660.0,0.0614]
[1764639722562,0.9308,86664.0,86660.0,0.0614]
[1764639722962,0.0115388,86661.0,86660.0,0.002]
[1764639723165,0.57162225,86661.0,86660.0,0.002]
[1764639723861,0.0085394,86657.0,86656.0,0.00017308]
[1764639724060,0.9752994,86657.0,86656.0,0.00017308]
[1764639724555,1.3360994,86657.0,86656.0,0.00017308]
[1764639724755,1.3360994,86657.0,86640.0,0.06204794]
[1764639724756,0.0115412,86643.0,86639.0,0.5091]
[1764639725066,0.0115415,86641.0,86639.0,0.5091]
[1764639725365,0.14,86641.0,86640.0,0.17621]
[1764639727960,0.14,86641.0,86640.0,0.17721]
[1764639729267,0.1515415,86641.0,86640.0,0.17721]
[1764639730161,0.14,86641.0,86640.0,0.17721]
[1764639733059,0.52,86641.0,86640.0,0.001]
[1764639734374,0.0115416,86640.0,86632.0,0.14463308]
[1764639734568,0.0115425,86633.0,86632.0,0.14463308]
[1764639734867,0.6884225,86633.0,86632.0,0.23194308]
[1764639735172,0.67688,86633.0,86632.0,0.23194308]
[1764639735357,0.005,86641.0,86640.0,0.23177]
[1764639735557,0.68088,86641.0,86640.0,0.23177]
[1764639735760,0.004,86641.0,86640.0,0.59257]
[1764639735960,0.044,86641.0,86640.0,0.64257]
[1764639736469,0.29192,86645.0,86640.0,0.64257]
[1764639736470,0.19406345,86645.0,86644.0,0.17621]
[1764639736670,0.21406345,86645.0,86644.0,0.17621]
[1764639737366,0.39431345,86645.0,86644.0,0.17621]
[1764639737561,0.21406345,86645.0,86644.0,0.17621]
[1764639737764,0.21706345,86645.0,86644.0,0.17621]
[1764639737953,0.023,86645.0,86644.0,0.17621]
[1764639738559,0.004,86645.0,86644.0,0.22621]
[1764639738764,0.3608,86666.0,86665.0,0.17621]
[1764639738962,0.89528,86666.0,86665.0,0.17621]
[1764639739774,1.07553,86666.0,86665.0,0.17621]
[1764639740066,1.07553,86666.0,86661.0,0.05556]
[1764639740067,0.18025,86662.0,86661.0,0.23177]
[1764639740278,0.28025,86662.0,86661.0,0.23177]
[1764639740675,0.2917887,86662.0,86661.0,0.23177]
[1764639741069,0.1917892,86658.0,86657.0,0.00017308]
[1764639741267,0.2917892,86658.0,86657.0,0.00017308]
[1764639741486,0.7417892,86658.0,86657.0,0.00017308]
[1764639741773,0.1917911,86644.0,86643.0,0.4497]
[1764639741974,0.1917911,86644.0,86640.0,0.05556]
[1764639741975,0.1917915,86641.0,86640.0,0.05556]
[1764639742175,0.1917921,86636.0,86635.0,0.53701]
[1764639742376,0.1047517,86640.0,86639.0,0.17621]
[1764639742574,0.2917917,86640.0,86639.0,0.0889]
[1764639742876,0.28025,86640.0,86639.0,0.17621]
[1764639743673,0.19321,86640.0,86639.0,0.17721]
[1764639746783,0.28025,86640.0,86639.0,0.17721]
[1764639747475,0.63009,86644.0,86643.0,0.23177]
[1764639747671,0.8287112,86644.0,86643.0,0.23177]
[1764639747870,0.00747608,86640.0,86639.0,0.17721]
[1764639748173,0.6484616,86640.0,86639.0,0.17721]
[1764639748988,0.63692,86640.0,86639.0,0.17721]
[1764639749176,0.63692,86640.0,86639.0,0.17621]
[1764639749480,0.63592,86640.0,86639.0,0.17621]
[1764639749991,0.63592,86640.0,86639.0,0.17721]
[1764639751783,0.00017308,86648.0,86647.0,0.20334]
[1764639752079,0.3608,86661.0,86660.0,0.20334]
[1764639752473,0.47968,86663.0,86660.0,0.20334]
[1764639752674,0.47968,86663.0,86662.0,0.20221]
[1764639753581,0.48068,86663.0,86662.0,0.20221]
[1764639754082,0.48168,86663.0,86662.0,0.20221]
[1764639755081,0.60608,86663.0,86662.0,0.20221]
[1764639755483,0.54388,86663.0,86662.0,0.20221]
[1764639755687,0.48168,86663.0,86662.0,0.20221]
[1764639757186,0.48068,86663.0,86662.0,0.20221]
[1764639757387,0.48168,86663.0,86662.0,0.20221]
[1764639757983,0.3608,86706.0,86696.0,0.06112]
[1764639758184,0.66566,86705.0,86704.0,0.25946]
[1764639758376,0.12874,86697.0,86696.0,0.25946]
[1764639758785,0.12874,86697.0,86696.0,0.27122377]
[1764639758976,0.42517,86699.0,86698.0,0.19834]
[1764639759285,0.00017308,86705.0,86704.0,0.19834]
[1764639759473,0.00117308,86705.0,86704.0,0.19834]
[1764639759981,0.00017308,86705.0,86704.0,0.19834]
[1764639760585,0.00117308,86705.0,86704.0,0.19834]
[1764639760781,0.00217308,86705.0,86704.0,0.19834]
[1764639762086,0.3608,86723.0,86710.0,0.06112]
[1764639762087,0.1331,86721.0,86710.0,0.06112]
[1764639762684,0.06655,86711.0,86710.0,0.25946]
[1764639763387,0.1331,86711.0,86710.0,0.25946]